[Event "Catalan Youth-ch 2020"]
[Site "Salou"]
[Date "2020.09.06"]
[Round "3.6"]
[White "Marcos Rodriguez, Raul"]
[Black "Aleksanyan Israilyan, Nicolas"]
[Result "0-1"]
[ECO "C00"]
[WhiteElo "1459"]
[BlackElo "1808"]
[Annotator "NA"]
[PlyCount "161"]
[EventDate "2020.09.07"]
[EventType "swiss"]
[EventCountry "ESP"]
[SourceTitle "playchess.com"]
[Source "ChessBase"]
[SourceQuality "1"]
[TimeControl "5400+30"]

1. e4 {[%emt 0:00:00]} e6 {[%emt 0:02:10]} 2. Nf3 {[%emt 0:00:00]} d5 {[%emt 0:00:07]} 3. e5 {[%emt 0:00:00]} c5 {[%emt 0:00:58]} 4. b4 {[%emt 0:00:03]} cxb4 {[%emt 0:00:48]} 5. d4 {[%emt 0:00:30]} Nc6 {[%emt 0:00:55]} 6. a3 {[%emt 0:01:30]} a6 {[%emt 0:02:05]} 7. axb4 {[%emt 0:03:23]} Bxb4+ {[%emt 0:00:13]} 8. c3 {[%emt 0:00:05]} Be7 {[%emt 0:00:41]} 9. Nbd2 {[%emt 0:01:57]} Bd7 {[%emt 0:05:35]} 10. Bd3 {[%emt 0:01:12]} b5 {[%emt 0:01:59]} 11. O-O {[%emt 0:00:37]} Na5 {[%emt 0:02:12]} 12. Ba3 {[%emt 0:05:51]} Nc4 {[%emt 0:01:15]} 13. Nxc4 {[%emt 0:00:44]} bxc4 {[%emt 0:00:10]} 14. Bc2 {[%emt 0:00:22]} Bxa3 {[%emt 0:02:15]} 15. Rxa3 {[%emt 0:00:19]} Ne7 {[%emt 0:00:20]} 16. Ng5 {[%emt 0:03:51]} h6 {[%emt 0:02:02]} 17. Qh5 {[%emt 0:06:49]} g6 {[%emt 0:00:32]} 18. Qh3 {[%emt 0:00:57]} Kf8 {[%emt 0:05:28]} 19. Rfa1 {[%emt 0:01:21]} Kg7 {[%emt 0:00:40]} 20. Nf3 {[%emt 0:01:14]} Bb5 {[%emt 0:00:30]} 21. Nd2 {[%emt 0:08:19]} Nc6 {[%emt 0:03:48]} 22. f4 {[%emt 0:02:25]} Ne7 {[%emt 0:04:13]} 23. Nf3 {[%emt 0:02:47]} h5 {[%emt 0:10:10]} 24. Ng5 {[%emt 0:00:18]} Qd7 {[%emt 0:02:56]} 25. Qh4 {[%emt 0:02:44]} Nc6 {[%emt 0:05:21]} 26. Nf3 {[%emt 0:05:12]} Qe7 {[%emt 0:00:25]} 27. Qg3 {[%emt 0:01:56]} Qd7 {[%emt 0:02:06]} 28. Qh4 {[%emt 0:03:47]} Qd8 {[%emt 0:00:16]} 29. Qg3 {[%emt 0:01:03]} Ne7 {[%emt 0:00:24]} 30. Ng5 {[%emt 0:02:25]} Qd7 {[%emt 0:01:03]} 31. Re1 {[%emt 0:01:50]} Rhe8 {[%emt 0:00:51]} 32. Ra2 {[%emt 0:02:14]} a5 {[%emt 0:00:31]} 33. Bb1 {[%emt 0:00:08]} Ba4 {[%emt 0:01:09]} 34. Rf2 {[%emt 0:01:38]} Bb3 {[%emt 0:01:11]} 35. f5 {[%emt 0:12:17]} Nxf5 {[%emt 0:00:02]} 36. Bxf5 {[%emt 0:00:04]} exf5 {[%emt 0:00:14]} 37. e6 {[%emt 0:01:23]} Rxe6 {[%emt 0:10:12]} 38. Nxe6+ {[%emt 0:02:16]} fxe6 {[%emt 0:00:03]} 39. Qe5+ {[%emt 0:02:49]} Kf7 {[%emt 0:00:02]} 40. Ra1 {[%emt 0:01:21]} a4 {[%emt 0:00:45]} 41. Rff1 {[%emt 0:00:04]} Rc8 {[%emt 0:01:33]} 42. Kf2 {[%emt 0:02:38]} Qc7 {[%emt 0:00:24]} 43. Qxc7+ {[%emt 0:00:52]} Rxc7 {[%emt 0:00:09]} 44. Ke3 {[%emt 0:00:47]} Ra7 {[%emt 0:00:29]} 45. h4 {[%emt 0:00:02]} a3 {[%emt 0:01:04]} 46. Rf2 {[%emt 0:01:25]} a2 {[%emt 0:00:24]} 47. Rb2 {[%emt 0:03:36]} Kf6 {[%emt 0:00:31]} 48. Kf4 {[%emt 0:00:23]} Rg7 {[%emt 0:00:17]} 49. g3 {[%emt 0:00:26]} g5+ {[%emt 0:02:33]} 50. hxg5+ {[%emt 0:00:41]} Rxg5 {[%emt 0:00:09]} 51. Rh2 {[%emt 0:00:25]} Rg4+ {[%emt 0:01:23]} 52. Kf3 {[%emt 0:00:11]} Kg6 {[%emt 0:00:21]} 53. Rah1 {[%emt 0:02:53]} Rg5 {[%emt 0:01:39]} 54. Kf4 {[%emt 0:00:57]} Kf6 {[%emt 0:00:17]} 55. Ra1 {[%emt 0:00:24]} Rg4+ {[%emt 0:05:14]} 56. Kf3 {[%emt 0:00:07]} Kg6 {[%emt 0:04:24]} 57. Re2 {[%emt 0:01:25]} Re4 {[%emt 0:00:04]} 58. Rh2 {[%emt 0:02:14]} Kh6 {[%emt 0:01:24]} 59. Rah1 {[%emt 0:01:48]} Kg6 {[%emt 0:00:09]} 60. Ra1 {[%emt 0:00:01]} Rg4 {[%emt 0:01:18]} 61. Re2 {[%emt 0:00:45]} Kf6 {[%emt 0:00:19]} 62. Rh2 {[%emt 0:01:13]} Rg8 {[%emt 0:00:37]} 63. Kf4 {[%emt 0:04:39]} Ra8 {[%emt 0:00:51]} 64. Rxh5 {[%emt 0:00:45]} Bc2 {[%emt 0:00:14]} 65. Rh6+ {[%emt 0:02:12]} Kf7 {[%emt 0:00:10]} 66. Ke5 {[%emt 0:01:05]} Ra6 {[%emt 0:00:55]} 67. Rh7+ {[%emt 0:00:46]} Ke8 {[%emt 0:01:26]} 68. Rb7 {[%emt 0:00:41]} Bb1 {[%emt 0:00:47]} 69. Rb2 {[%emt 0:01:57]} Kd8 {[%emt 0:01:48]} 70. Rb7 {[%emt 0:00:09]} Rc6 {[%emt 0:00:18]} 71. Ra7 {[%emt 0:00:32]} Rb6 {[%emt 0:00:15]} 72. Ra8+ {[%emt 0:00:27]} Kc7 {[%emt 0:01:17]} 73. Rh8 {[%emt 0:00:26]} Rb3 {[%emt 0:01:16]} 74. Kxe6 {[%emt 0:00:33]} Rxc3 {[%emt 0:00:06]} 75. Kxd5 {[%emt 0:00:18]} Rc1 {[%emt 0:00:13]} 76. Kc5 {[%emt 0:00:26]} c3 {[%emt 0:00:34]} 77. Rh7+ {[%emt 0:01:14]} Kd8 {[%emt 0:00:11]} 78. Kd6 {[%emt 0:00:26]} Ke8 {[%emt 0:02:17]} 79. Ke6 {[%emt 0:00:06]} Kf8 80. Kf6 Kg8 81. Ke6 {[%emt 0:00:01]} 0-1

[Event "Catalan Youth-ch 2020"]
[Site "Salou"]
[Date "2020.09.06"]
[Round "3.7"]
[White "Alcala Gonzalez, Cesar"]
[Black "Moya Nunez, Pau Salvador"]
[Result "1/2-1/2"]
[ECO "D85"]
[WhiteElo "2026"]
[BlackElo "1990"]
[Annotator "NA"]
[PlyCount "43"]
[EventDate "2020.09.07"]
[EventType "swiss"]
[EventCountry "ESP"]
[SourceTitle "playchess.com"]
[Source "ChessBase"]
[SourceQuality "1"]
[TimeControl "5400+30"]

1. d4 {[%emt 0:00:04]} Nf6 {[%emt 0:00:00]} 2. c4 {[%emt 0:00:09]} g6 {[%emt 0:00:00]} 3. Nc3 {[%emt 0:00:00]} d5 {[%emt 0:00:00]} 4. cxd5 {[%emt 0:00:00]} Nxd5 {[%emt 0:00:00]} 5. Bd2 {[%emt 0:00:00]} Bg7 {[%emt 0:00:09]} 6. e4 {[%emt 0:00:00]} Nb6 {[%emt 0:00:00]} 7. Be3 {[%emt 0:00:07]} O-O {[%emt 0:00:00]} 8. Bb5 {[%emt 0:00:04]} Be6 {[%emt 0:09:43]} 9. d5 {[%emt 0:09:50]} Bd7 {[%emt 0:00:26]} 10. Bxd7 N8xd7 11. Nf3 {[%emt 0:13:26]} Nc4 {[%emt 0:00:00]} 12. Bd4 {[%emt 0:05:21]} Nxb2 13. Qe2 {[%emt 0:01:06]} Nc5 {[%emt 0:02:06]} 14. O-O {[%emt 0:05:01]} Nba4 {[%emt 0:04:01]} 15. Bxg7 {[%emt 0:01:27]} Kxg7 {[%emt 0:00:03]} 16. Qc4 {[%emt 0:19:27]} Qd7 17. Rac1 {[%emt 0:21:53]} b6 {[%emt 0:40:36]} 18. Ne5 {[%emt 0:19:42]} Qe8 {[%emt 0:01:59]} 19. Nb5 {[%emt 0:10:43]} f6 {[%emt 0:05:38]} 20. Nxc7 {[%emt 0:00:00]} Qc8 {[%emt 0:01:24]} 21. Nf3 {[%emt 0:09:28]} Qxc7 {[%emt 0:01:05]} 22. Ra1 {[%emt 0:00:29]} 1/2-1/2

[Event "Catalan Youth-ch 2020"]
[Site "Salou"]
[Date "2020.09.06"]
[Round "3.7"]
[White "Alonso Gimenez, Mauro"]
[Black "Prada Villagrasa, Pau Manel"]
[Result "0-1"]
[ECO "C54"]
[WhiteElo "1397"]
[BlackElo "1573"]
[Annotator "NA"]
[PlyCount "100"]
[EventDate "2020.09.07"]
[EventType "swiss"]
[EventCountry "ESP"]
[SourceTitle "playchess.com"]
[Source "ChessBase"]
[SourceQuality "1"]
[TimeControl "5400+30"]

1. e4 {[%emt 0:00:00]} e5 {[%emt 0:00:08]} 2. Nf3 {[%emt 0:00:46]} Nc6 {[%emt 0:01:01]} 3. Bc4 {[%emt 0:00:28]} Bc5 {[%emt 0:00:45]} 4. d3 {[%emt 0:00:46]} Nf6 {[%emt 0:00:46]} 5. c3 {[%emt 0:00:55]} O-O {[%emt 0:00:57]} 6. O-O {[%emt 0:00:28]} d5 {[%emt 0:01:58]} 7. exd5 {[%emt 0:00:38]} Nxd5 {[%emt 0:00:26]} 8. Bg5 {[%emt 0:00:47]} Nf6 {[%emt 0:02:06]} 9. b4 {[%emt 0:01:05]} Bd6 {[%emt 0:01:36]} 10. Nbd2 {[%emt 0:01:24]} Bg4 {[%emt 0:01:15]} 11. a4 {[%emt 0:04:04]} a6 {[%emt 0:01:56]} 12. Ne4 {[%emt 0:01:02]} Be7 {[%emt 0:00:52]} 13. Bxf6 {[%emt 0:00:53]} Bxf6 {[%emt 0:00:30]} 14. h3 {[%emt 0:00:32]} Bh5 {[%emt 0:00:30]} 15. Ng3 {[%emt 0:00:48]} Bg6 {[%emt 0:03:44]} 16. Re1 {[%emt 0:01:04]} e4 {[%emt 0:01:31]} 17. Nd4 {[%emt 0:01:19]} Nxd4 {[%emt 0:00:00]} 18. cxd4 {[%emt 0:00:44]} Bxd4 {[%emt 0:01:34]} 19. Rc1 {[%emt 0:00:56]} exd3 {[%emt 0:01:21]} 20. Ne4 {[%emt 0:06:22]} Qh4 {[%emt 0:01:09]} 21. Qf3 {[%emt 0:04:03]} d2 {[%emt 0:00:43]} 22. Nxd2 {[%emt 0:05:14]} Kh8 {[%emt 0:06:44]} 23. Ne4 {[%emt 0:01:17]} f5 {[%emt 0:00:56]} 24. Qg3 {[%emt 0:03:27]} Qh6 {[%emt 0:05:01]} 25. Qf3 {[%emt 0:00:41]} Rad8 {[%emt 0:02:01]} 26. Qd1 {[%emt 0:01:41]} Be3 {[%emt 0:00:31]} 27. Nd2 Bxf2+ 28. Kxf2 {[%emt 0:00:12]} Rxd2+ {[%emt 0:00:26]} 29. Kg1 {[%emt 0:00:30]} Rxd1 {[%emt 0:00:09]} 30. Rcxd1 {[%emt 0:01:17]} Bh5 {[%emt 0:00:31]} 31. Rd7 {[%emt 0:01:57]} b5 {[%emt 0:00:34]} 32. Bf7 {[%emt 0:00:00]} Bxf7 33. Rxf7 {[%emt 0:00:31]} Qd6 {[%emt 0:02:19]} 34. Rxf8+ {[%emt 0:00:03]} Qxf8 {[%emt 0:03:00]} 35. Kh2 h6 {[%emt 0:01:44]} 36. axb5 {[%emt 0:03:05]} axb5 {[%emt 0:00:36]} 37. Kg3 {[%emt 0:00:28]} Qd6+ {[%emt 0:00:37]} 38. Kf3 {[%emt 0:00:38]} Qxb4 {[%emt 0:00:18]} 39. Re8+ {[%emt 0:00:18]} Kh7 {[%emt 0:00:16]} 40. g4 {[%emt 0:00:41]} Qc5 {[%emt 0:00:30]} 41. gxf5 {[%emt 0:00:11]} Qxf5+ {[%emt 0:00:26]} 42. Kg3 {[%emt 0:00:11]} Qg6+ {[%emt 0:00:09]} 43. Kf4 {[%emt 0:00:11]} Qxe8 {[%emt 0:00:00]} 44. h4 {[%emt 0:00:17]} b4 {[%emt 0:00:00]} 45. h5 {[%emt 0:00:16]} b3 {[%emt 0:00:25]} 46. Kf5 {[%emt 0:00:13]} b2 {[%emt 0:00:15]} 47. Kf4 {[%emt 0:00:11]} b1=Q {[%emt 0:00:00]} 48. Kg4 {[%emt 0:00:53]} Qee4+ {[%emt 0:00:19]} 49. Kg3 {[%emt 0:00:18]} Qg1+ {[%emt 0:00:19]} 50. Kh3 {[%emt 0:00:55]} Qeg4# {[%emt 0:00:29]} 0-1

[Event "Catalan Youth-ch 2020"]
[Site "Salou"]
[Date "2020.09.06"]
[Round "3.8"]
[White "Martin Barcelo, Carles"]
[Black "Jurado Coderch, Heribert"]
[Result "1-0"]
[ECO "C70"]
[WhiteElo "2202"]
[BlackElo "1741"]
[Annotator "ChessBase"]
[PlyCount "49"]
[EventDate "2020.09.07"]
[EventType "swiss"]
[EventCountry "ESP"]
[SourceTitle "playchess.com"]
[Source "ChessBase"]
[SourceQuality "1"]
[TimeControl "5400+30"]

1. e4 {[%emt 0:00:01]} e5 {[%emt 0:00:07]} 2. Nf3 {[%emt 0:00:06]} Nc6 {[%emt 0:00:08]} 3. Bb5 {[%emt 0:00:16]} a6 {[%emt 0:00:18]} 4. Ba4 {[%emt 0:00:05]} g6 {[%emt 0:00:08]} 5. d4 {[%emt 0:00:29]} exd4 {[%emt 0:00:13]} 6. Nxd4 {[%emt 0:00:07]} Bg7 {[%emt 0:05:39]} 7. Nxc6 {[%emt 0:00:12]} dxc6 {[%emt 0:01:40]} 8. Qxd8+ {[%emt 0:01:51]} Kxd8 {[%emt 0:00:09]} 9. Bb3 {[%emt 0:00:19]} Ke7 {[%emt 0:07:23]} 10. Nc3 {[%emt 0:01:15]} Be6 {[%emt 0:07:08]} 11. Bg5+ {[%emt 0:01:45]} Bf6 {[%emt 0:05:30]} 12. Bf4 {[%emt 0:02:34]} Bxc3+ {[%emt 0:03:18]} 13. bxc3 {[%emt 0:00:05]} Nf6 {[%emt 0:01:00]} 14. f3 {[%emt 0:02:33]} Ne8 {[%emt 0:04:28]} 15. O-O-O {[%emt 0:03:20]} Nd6 {[%emt 0:04:31]} 16. e5 {[%emt 0:00:50]} Ne8 {[%emt 0:12:17]} 17. Bg5+ {[%emt 0:05:08]} Kf8 {[%emt 0:01:55]} 18. Bxe6 {[%emt 0:01:20]} fxe6 {[%emt 0:00:16]} 19. Bh6+ {[%emt 0:00:11]} Ke7 {[%emt 0:11:08]} 20. h4 {[%emt 0:06:15]} Rg8 {[%emt 0:07:10]} 21. Rd3 {[%emt 0:02:28]} Ng7 {[%emt 0:01:59]} 22. g4 {[%emt 0:00:05]} Rae8 {[%emt 0:05:52]} 23. Bg5+ {[%emt 0:07:09]} Kf8 {[%emt 0:03:07]} 24. Rhd1 {[%emt 0:00:06]} Rh8 {[%emt 0:02:36]} 25. Rd7 {[%emt 0:00:44]} 1-0

[Event "Catalan Youth-ch 2020"]
[Site "Salou"]
[Date "2020.09.06"]
[Round "3.8"]
[White "Marin Ripoll, Marti"]
[Black "Mompel Ferruz, Xavier"]
[Result "0-1"]
[ECO "D00"]
[WhiteElo "1313"]
[BlackElo "1505"]
[Annotator "NA"]
[PlyCount "138"]
[EventDate "2020.09.07"]
[EventType "swiss"]
[EventCountry "ESP"]
[SourceTitle "playchess.com"]
[Source "ChessBase"]
[SourceQuality "1"]
[TimeControl "5400+30"]

1. d4 {[%emt 0:00:12]} d5 {[%emt 0:00:10]} 2. e3 {[%emt 0:00:46]} Nf6 {[%emt 0:00:44]} 3. Bd3 {[%emt 0:00:43]} e6 {[%emt 0:01:26]} 4. f4 {[%emt 0:01:05]} c5 {[%emt 0:00:43]} 5. c3 {[%emt 0:00:08]} Nc6 {[%emt 0:01:00]} 6. Nf3 {[%emt 0:00:22]} Bd6 {[%emt 0:00:42]} 7. Nbd2 {[%emt 0:00:13]} b6 {[%emt 0:01:47]} 8. O-O {[%emt 0:01:14]} O-O {[%emt 0:01:16]} 9. Ne5 {[%emt 0:00:12]} Bb7 {[%emt 0:00:54]} 10. Rf3 {[%emt 0:00:25]} Ne7 {[%emt 0:01:19]} 11. Rh3 {[%emt 0:00:28]} g6 {[%emt 0:06:13]} 12. Qe1 {[%emt 0:01:13]} Nc6 {[%emt 0:01:46]} 13. e4 {[%emt 0:01:16]} Be7 {[%emt 0:01:21]} 14. Ndf3 {[%emt 0:03:00]} dxe4 {[%emt 0:01:50]} 15. Bb5 {[%emt 0:06:45]} Nxe5 {[%emt 0:04:42]} 16. fxe5 {[%emt 0:00:19]} Ne8 {[%emt 0:00:55]} 17. Nd2 {[%emt 0:01:01]} cxd4 {[%emt 0:00:45]} 18. Nxe4 {[%emt 0:01:57]} Qd5 {[%emt 0:01:00]} 19. Bd3 {[%emt 0:00:43]} Qxe5 {[%emt 0:01:34]} 20. Bd2 {[%emt 0:04:07]} f5 {[%emt 0:03:32]} 21. Ng5 {[%emt 0:00:39]} Qxe1+ {[%emt 0:00:34]} 22. Rxe1 {[%emt 0:00:05]} dxc3 {[%emt 0:00:28]} 23. bxc3 {[%emt 0:01:30]} Bxg5 {[%emt 0:00:42]} 24. Bxg5 {[%emt 0:00:07]} Ng7 {[%emt 0:00:24]} 25. Bc4 {[%emt 0:01:00]} Rfe8 {[%emt 0:00:55]} 26. Bb5 {[%emt 0:00:13]} Rf8 {[%emt 0:02:53]} 27. Bh6 {[%emt 0:00:23]} Be4 {[%emt 0:00:19]} 28. Bg5 {[%emt 0:00:55]} a6 {[%emt 0:01:13]} 29. Bc4 {[%emt 0:00:37]} b5 {[%emt 0:00:46]} 30. Bb3 {[%emt 0:00:11]} Rac8 {[%emt 0:02:06]} 31. Rd1 {[%emt 0:02:33]} Rc6 {[%emt 0:00:31]} 32. Rd7 {[%emt 0:00:54]} Rfc8 {[%emt 0:01:15]} 33. Bf6 {[%emt 0:02:01]} Nh5 {[%emt 0:00:16]} 34. Be5 {[%emt 0:01:16]} a5 {[%emt 0:15:47]} 35. Re3 {[%emt 0:01:45]} a4 {[%emt 0:00:25]} 36. Bd1 {[%emt 0:00:55]} Rc5 {[%emt 0:01:32]} 37. Bd4 {[%emt 0:00:14]} Rd5 {[%emt 0:00:56]} 38. Rxd5 {[%emt 0:03:33]} Bxd5 {[%emt 0:00:33]} 39. Bxh5 {[%emt 0:00:25]} gxh5 {[%emt 0:00:10]} 40. a3 {[%emt 0:01:59]} Rc4 {[%emt 0:02:41]} 41. Re1 {[%emt 0:00:00]} Kf7 {[%emt 0:01:06]} 42. Rb1 {[%emt 0:00:00]} Bc6 {[%emt 0:01:57]} 43. Kf2 {[%emt 0:00:25]} f4 {[%emt 0:00:57]} 44. Re1 {[%emt 0:11:48]} h4 {[%emt 0:02:58]} 45. g3 {[%emt 0:00:00]} fxg3+ {[%emt 0:06:26]} 46. hxg3 {[%emt 0:00:00]} h3 {[%emt 0:00:32]} 47. Kg1 {[%emt 0:00:00]} Bd7 {[%emt 0:07:14]} 48. Rf1+ {[%emt 0:00:00]} Ke7 {[%emt 0:01:15]} 49. Kf2 {[%emt 0:00:00]} Bc6 {[%emt 0:00:36]} 50. Kg1 {[%emt 0:00:00]} Bd7 {[%emt 0:03:17]} 51. Kf2 {[%emt 0:00:23]} Rc8 {[%emt 0:00:42]} 52. Rh1 {[%emt 0:00:18]} h5 {[%emt 0:01:02]} 53. Be5 {[%emt 0:00:23]} Rc5 {[%emt 0:00:57]} 54. Bd4 {[%emt 0:00:09]} Rf5+ {[%emt 0:01:11]} 55. Ke3 {[%emt 0:00:15]} Rf3+ {[%emt 0:01:12]} 56. Kxf3 {[%emt 0:00:10]} Bc6+ {[%emt 0:00:06]} 57. Kf2 {[%emt 0:00:07]} Bxh1 {[%emt 0:00:04]} 58. Kg1 {[%emt 0:00:25]} Bg2 {[%emt 0:00:16]} 59. Kh2 {[%emt 0:00:05]} Kd6 {[%emt 0:00:08]} 60. Kg1 {[%emt 0:00:31]} e5 {[%emt 0:00:06]} 61. Be3 {[%emt 0:00:18]} Kd5 {[%emt 0:00:05]} 62. Kf2 {[%emt 0:00:06]} Kc4 {[%emt 0:00:12]} 63. g4 {[%emt 0:01:00]} hxg4 {[%emt 0:00:05]} 64. Bf4 {[%emt 0:00:10]} exf4 {[%emt 0:00:07]} 65. Kg1 {[%emt 0:00:17]} Kxc3 {[%emt 0:00:15]} 66. Kf2 {[%emt 0:00:05]} Kd2 {[%emt 0:00:17]} 67. Kg1 {[%emt 0:00:05]} b4 {[%emt 0:00:23]} 68. Kh2 {[%emt 0:00:16]} bxa3 {[%emt 0:00:10]} 69. Kg1 {[%emt 0:00:05]} Bf3 {[%emt 0:00:21]} 0-1

[Event "Catalan Youth-ch 2020"]
[Site "Salou"]
[Date "2020.09.07"]
[Round "4.1"]
[White "Alvarez Albiol, Victor"]
[Black "Saguillo Gonzalez, Oriol"]
[Result "1/2-1/2"]
[ECO "C40"]
[WhiteElo "2123"]
[BlackElo "2124"]
[Annotator "NA"]
[PlyCount "66"]
[EventDate "2020.09.07"]
[EventType "swiss"]
[EventCountry "ESP"]
[SourceTitle "playchess.com"]
[Source "ChessBase"]
[SourceQuality "1"]
[TimeControl "5400+30"]

1. e4 {[%emt 0:00:00]} e5 {[%emt 0:00:20]} 2. Nf3 {[%emt 0:00:00]} d5 {[%emt 0:00:04]} 3. exd5 {[%emt 0:02:13]} e4 {[%emt 0:00:06]} 4. Qe2 {[%emt 0:00:54]} Nf6 {[%emt 0:00:04]} 5. Nc3 {[%emt 0:01:14]} Be7 {[%emt 0:00:06]} 6. Nd4 {[%emt 0:07:11]} O-O {[%emt 0:00:30]} 7. h3 {[%emt 0:02:34]} Re8 {[%emt 0:03:42]} 8. g3 {[%emt 0:19:25]} Nxd5 {[%emt 0:01:00]} 9. Nxd5 {[%emt 0:04:17]} Qxd5 {[%emt 0:00:42]} 10. Qc4 {[%emt 0:06:01]} Qe5 {[%emt 0:00:35]} 11. Bg2 {[%emt 0:03:08]} Bc5 {[%emt 0:01:43]} 12. Nb3 {[%emt 0:05:15]} Bb6 {[%emt 0:00:30]} 13. Qc3 {[%emt 0:02:04]} Qh5 {[%emt 0:02:19]} 14. Nd4 {[%emt 0:04:48]} Nc6 {[%emt 0:00:42]} 15. Nxc6 {[%emt 0:01:46]} bxc6 {[%emt 0:00:06]} 16. g4 {[%emt 0:04:40]} Qg6 {[%emt 0:00:34]} 17. b3 {[%emt 0:03:44]} Rd8 {[%emt 0:05:24]} 18. Qg3 {[%emt 0:04:07]} Bd4 {[%emt 0:09:57]} 19. c3 {[%emt 0:02:53]} Bb6 {[%emt 0:07:03]} 20. O-O {[%emt 0:01:15]} f5 {[%emt 0:01:17]} 21. Qf4 {[%emt 0:04:19]} Be6 {[%emt 0:07:02]} 22. Ba3 {[%emt 0:02:13]} Rd3 {[%emt 0:02:12]} 23. Kh1 {[%emt 0:04:17]} Rad8 {[%emt 0:04:10]} 24. Rae1 {[%emt 0:01:36]} h6 {[%emt 0:10:14]} 25. c4 {[%emt 0:02:13]} Ba5 {[%emt 0:05:05]} 26. b4 {[%emt 0:02:12]} Rxa3 {[%emt 0:00:46]} 27. bxa5 {[%emt 0:00:07]} Rf8 {[%emt 0:04:36]} 28. Re3 {[%emt 0:03:43]} fxg4 {[%emt 0:05:29]} 29. Qxe4 {[%emt 0:03:01]} Bf5 {[%emt 0:01:14]} 30. Qxc6 {[%emt 0:00:28]} Qxc6 {[%emt 0:04:11]} 31. Bxc6 {[%emt 0:00:06]} Rxe3 {[%emt 0:01:14]} 32. dxe3 {[%emt 0:00:01]} gxh3 {[%emt 0:03:45]} 33. Bd5+ {[%emt 0:00:33]} Kh7 {[%emt 0:01:36]} 1/2-1/2

[Event "Catalan Youth-ch 2020"]
[Site "Salou"]
[Date "2020.09.07"]
[Round "4.1"]
[White "Ribera Veganzones, Serni"]
[Black "Rodriguez Gonzalez, Gerard"]
[Result "1-0"]
[ECO "C50"]
[WhiteElo "1902"]
[BlackElo "1714"]
[Annotator "NA"]
[PlyCount "65"]
[EventDate "2020.09.07"]
[EventType "swiss"]
[EventCountry "ESP"]
[SourceTitle "playchess.com"]
[Source "ChessBase"]
[SourceQuality "1"]
[TimeControl "5400+30"]

1. e4 {[%emt 0:01:02]} e5 {[%emt 0:00:06]} 2. Nf3 {[%emt 0:00:22]} Nc6 {[%emt 0:00:33]} 3. d4 {[%emt 0:00:10]} exd4 {[%emt 0:01:43]} 4. Bc4 {[%emt 0:00:12]} d6 {[%emt 0:01:44]} 5. Nxd4 {[%emt 0:02:34]} Bd7 {[%emt 0:14:11]} 6. Nc3 {[%emt 0:02:14]} Nf6 {[%emt 0:02:09]} 7. O-O {[%emt 0:01:35]} Nxd4 {[%emt 0:01:12]} 8. Qxd4 {[%emt 0:00:08]} Be7 {[%emt 0:00:43]} 9. Bf4 {[%emt 0:03:24]} O-O {[%emt 0:01:29]} 10. Rfe1 {[%emt 0:01:03]} Bc6 {[%emt 0:03:52]} 11. Rad1 {[%emt 0:01:23]} Nd7 {[%emt 0:02:30]} 12. Nd5 {[%emt 0:10:29]} Bg5 {[%emt 0:09:50]} 13. Bg3 {[%emt 0:15:51]} a5 {[%emt 0:16:49]} 14. f4 {[%emt 0:07:50]} Bh6 {[%emt 0:02:55]} 15. a3 {[%emt 0:02:30]} Re8 {[%emt 0:03:19]} 16. e5 {[%emt 0:10:47]} dxe5 {[%emt 0:06:27]} 17. fxe5 {[%emt 0:00:13]} Nf8 {[%emt 0:01:15]} 18. Nf6+ {[%emt 0:08:00]} Kh8 {[%emt 0:03:02]} 19. Nxe8 {[%emt 0:00:56]} Qxe8 {[%emt 0:00:09]} 20. Bf4 {[%emt 0:06:08]} Ne6 {[%emt 0:01:55]} 21. Bxe6 {[%emt 0:00:15]} Qxe6 {[%emt 0:00:13]} 22. Bxh6 {[%emt 0:00:08]} gxh6 {[%emt 0:00:10]} 23. Qh4 {[%emt 0:01:39]} Rg8 {[%emt 0:05:21]} 24. Rd8 {[%emt 0:01:44]} Re8 {[%emt 0:02:13]} 25. Qf6+ {[%emt 0:01:19]} Kg8 {[%emt 0:00:31]} 26. Rxe8+ {[%emt 0:02:57]} Qxe8 {[%emt 0:01:34]} 27. Re3 {[%emt 0:01:38]} Qd7 {[%emt 0:02:33]} 28. Rd3 {[%emt 0:00:06]} Bd5 {[%emt 0:00:28]} 29. Qxh6 {[%emt 0:01:26]} f5 {[%emt 0:01:02]} 30. Rg3+ {[%emt 0:00:27]} Kf7 {[%emt 0:00:17]} 31. Rg7+ {[%emt 0:00:18]} Ke8 {[%emt 0:00:14]} 32. Rxd7 {[%emt 0:00:12]} Kxd7 {[%emt 0:00:07]} 33. Qxh7+ {[%emt 0:00:06]} 1-0

[Event "Catalan Youth-ch 2020"]
[Site "Salou"]
[Date "2020.09.07"]
[Round "4.2"]
[White "Bernado Lopez, Roger"]
[Black "Parra Ordorica, Arnau"]
[Result "1-0"]
[ECO "C52"]
[WhiteElo "2155"]
[BlackElo "1808"]
[Annotator "NA"]
[PlyCount "51"]
[EventDate "2020.09.07"]
[EventType "swiss"]
[EventCountry "ESP"]
[SourceTitle "playchess.com"]
[Source "ChessBase"]
[SourceQuality "1"]
[TimeControl "5400+30"]

1. e4 {[%emt 0:00:00]} e5 {[%emt 0:00:00]} 2. Nf3 {[%emt 0:00:00]} Nc6 {[%emt 0:00:05]} 3. Bc4 {[%emt 0:00:00]} Bc5 {[%emt 0:01:17]} 4. b4 {[%emt 0:00:00]} Bxb4 {[%emt 0:01:28]} 5. c3 {[%emt 0:00:00]} Ba5 {[%emt 0:01:44]} 6. d4 {[%emt 0:00:00]} exd4 {[%emt 0:05:36]} 7. O-O {[%emt 0:00:01]} Nge7 {[%emt 0:01:17]} 8. cxd4 {[%emt 0:00:29]} d5 {[%emt 0:01:55]} 9. exd5 {[%emt 0:00:05]} Nxd5 {[%emt 0:00:36]} 10. Ba3 {[%emt 0:00:09]} Be6 {[%emt 0:04:19]} 11. Qb3 {[%emt 0:03:25]} Bb6 {[%emt 0:00:53]} 12. Nc3 {[%emt 0:24:29]} Na5 {[%emt 0:18:58]} 13. Qa4+ {[%emt 0:00:13]} c6 {[%emt 0:00:09]} 14. Bxd5 {[%emt 0:01:43]} Bxd5 {[%emt 0:00:10]} 15. Rae1+ {[%emt 0:02:13]} Be6 {[%emt 0:01:43]} 16. d5 {[%emt 0:00:36]} Qf6 {[%emt 0:00:55]} 17. Ne4 {[%emt 0:00:38]} Qg6 {[%emt 0:00:49]} 18. Nd6+ {[%emt 0:00:47]} Kd8 {[%emt 0:00:50]} 19. dxe6 {[%emt 0:00:26]} fxe6 {[%emt 0:00:29]} 20. Ne5 {[%emt 0:00:32]} Qh5 {[%emt 0:00:33]} 21. Ndf7+ {[%emt 0:00:59]} Kc7 {[%emt 0:00:14]} 22. Bd6+ {[%emt 0:00:39]} Kc8 {[%emt 0:01:29]} 23. Nxh8 {[%emt 0:00:21]} Bc7 {[%emt 0:01:00]} 24. Bxc7 {[%emt 0:00:25]} Kxc7 {[%emt 0:00:12]} 25. Qxa5+ {[%emt 0:00:08]} b6 {[%emt 0:00:04]} 26. Qa4 {[%emt 0:01:28]} 1-0